{"text_format":"2","workbook":"xlsx","n_sheets":3,"sheets":["Erläuterungen","KuG-Rechner","Tabelle3"],"not_rendered":{"charts":0,"images":2,"macros":1,"external_links":0,"defined_names":0,"comments":1,"pivot_tables":0},"unopened":[],"bounds":{"document_bytes":16777216,"sheet_cells":100000,"run_cost":"one","rows_first":2000,"rows_last":500,"rows_between":2000,"halvings":0,"cell_chars":16384,"cell_head_chars":4096},"cells_cut":0,"cells_raw":0,"read":"whole","date_system":"1900"}

{"sheet":"Erläuterungen","index":0,"n_rows":1,"n_cols":8,"rows_kept":1,"cut":false,"hidden":false,"merged":[]}
[null,null,"Kurzarbeitergeld-Rechner",{"$nulls":4},"Erläuterungen"]

{"sheet":"KuG-Rechner","index":1,"n_rows":35,"n_cols":21,"rows_kept":35,"cut":false,"hidden":false,"merged":[[3,2,3,4],[3,8,3,10],[3,17,3,21],[20,13,21,14],[3,13,3,15],[16,13,17,14],[16,15,17,15],[18,13,19,14],[18,15,19,15],[8,18,9,19],[8,20,9,20],[20,15,21,15],[8,2,8,3],[5,8,5,10],[5,4,6,4],[6,8,6,9],[30,20,31,20],[10,8,11,9],[10,10,11,10],[22,8,23,9],[22,10,23,10],[24,8,25,9],[24,10,25,10],[28,8,29,9],[28,10,29,10],[30,8,31,9],[18,8,19,9],[18,10,19,10],[30,10,31,10],[8,8,8,9],[5,2,6,3],[26,1,26,5],[30,18,31,19],[30,4,31,4],[14,1,14,5],[23,1,23,5],[13,1,13,5],[18,2,19,3],[18,4,19,4],[30,2,31,3],[15,1,15,5],[28,2,29,3],[28,4,29,4]]}
[null,null,null,"Kurzarbeitergeld-Rechner",{"$nulls":14},"        Version 1.3"]
[]
[]
[null,null,"Individuelles Monatsentgelt ",{"$nulls":5},"Individuelles Monatseinkommen \nbei Kurzarbeit",{"$nulls":4},"Berechnung der monatlichen \nBruttolohnkosten bei Kurzarbeit",null,null,null,"Tarifliche oder betriebliche Aufzahlung"]
[]
[null,null,"Brutto-\nMonatsentgelt ",null,3500]
[{"$nulls":8},"Anteil Kurzarbeit",null,0.5]
[{"$nulls":10},"bzw.    "]
[null,null,"Wochenarbeitszeit",null,35,null,null,null,"Verbleibende Wochenarbeitszeit",null,17.5,{"$nulls":7},"Keine Aufzahlungsregel",null,0]
[]
[{"$nulls":8},"verbleibendes \nBrutto-Monatsentgelt",null,1750]
[]
[]
[]
[]
[]
[{"$nulls":13},"Bruttolohnkosten bei KA",null,2187.5]
[]
[null,null,"Netto-\nMonatsentgelt",null,2543.71,null,null,null,"Netto-Monatsentgelt\n(ohne Kurzarbeitergeld)",null,1403.93,null,null,"Bruttolohnkosten bei KA\n(in % zu den BLK ohne KA)",null,0.5]
[]
[{"$nulls":13},"Kostenersparnis in %",null,0.5]
[]
[{"$nulls":8},"Gesetzliches \nKurzarbeitergeld",null,746.50999999999988]
[]
[{"$nulls":8},"Nettoeinkommen \ninkl. Kurzarbeitergeld",null,2150.44]
[]
[]
[]
[null,null,"Erhöhtes Brutto-Monatsentgelt\n(inkl. ratierlicher Umlage) ",null,3500,null,null,null,"Tarifliche / betriebliche \nAufzahlung in Euro",null,0]
[]
[null,null,"Erhöhtes Netto-Monatsentgelt \n(inkl. ratierlicher Umlage)",null,2543.71,null,null,null,"Monatseinkommen in Kurzarbeit",null,2150.44,{"$nulls":7},"Nettoentgeltverlust bei Kurzarbeit",null,-393.27]
[]
[]
[]
[null,null,null,"Felder mit einem kleinen roten Dreieck ","enthalten einen Kommentar oder Hinweis, der sichtbar wird, wenn man mit der Maus darüber streicht."]

{"sheet":"Tabelle3","index":2,"n_rows":204,"n_cols":17,"rows_kept":204,"cut":false,"hidden":true,"merged":[]}
["Einstellungen / Ergebnisse",1,0,null,null,0.14599999999999999,null,null,null,50,null,null,null,0,0,0,0]
[null,3,3,2,1,18,null,1,2,61,null,2,null,1,5.8000000000000003E-2,4.5999999999999999E-2]
["normales Brutto SOLL","Steuerklasse","Kinderfreibetrag","Arbeitsstelle","Kirchensteuer","Zusätzlicher Krankenversicherungsbeitrag  "," %","Aufzahlung auf  ","gesetzliche Remanenzkosten","Kurzarbeit  "," %",null,null,null,"U-Geld","JahresSZ"]
[3500,"Lohnsteuerklasse I","Kinderfreibetrag - NEIN","Arbeitsstelle - OST","Keine Kirchensteuer",{"$f":"F$3&G4&G$3","v":"Zusätzlicher Krankenversicherungsbeitrag  0 %"},0,"Keine Aufzahlungsregel","gesetzliche Remanenzkosten - JA",{"$f":"J$3&K4&K$3","v":"Kurzarbeit  0 %"},0,"Erstattete Remanenzkosten verbleiben beim AG",0,"Berlin-Brandenburg (TG I und II)",5.8000000000000003E-2,4.5999999999999999E-2]
["Pauschaliertes Netto SOLL","Lohnsteuerklasse II","Kinderfreibetrag - 0,5","Arbeitsstelle - WEST","Kirchensteuer 8 %",{"$f":"F$3&G5&G$3","v":"Zusätzlicher Krankenversicherungsbeitrag  0,1 %"},0.1,"Aufzahlung auf x Euro Nettoeinkommen","gesetzliche Remanenzkosten - NEIN",{"$f":"J$3&K5&K$3","v":"Kurzarbeit  1 %"},1,"Erstattete Remanenzkosten werden geteilt",0.5,"Baden-Württemberg",0,0]
[1689.87,"Lohnsteuerklasse III","Kinderfreibetrag - 1",null,"Kirchensteuer 9 %","Zusätzlicher Krankenversicherungsbeitrag  0,15 %",0.15,"Zuzahlung von x Euro",null,"Kurzarbeit  2 %",2,"Erstattete Remanenzkosten vollständig an AN",1,"Bayern",5.8000000000000003E-2,4.5999999999999999E-2]
["Netto zu Brutto in %","Lohnsteuerklasse IV","Kinderfreibetrag - 1,5",null,null,"Zusätzlicher Krankenversicherungsbeitrag  0,2 %",0.2,"Aufzahlung auf x % vom normalen Netto-Monatsentgelt",null,"Kurzarbeit  3 %",3,null,1.5,"Hamburg (Nordverbund)",5.8000000000000003E-2,4.5999999999999999E-2]
[0.48281999999999997,"Lohnsteuerklasse V","Kinderfreibetrag - 2",null,null,"Zusätzlicher Krankenversicherungsbeitrag  0,25 %",0.25,"Aufstockung des KuG auf x % der Netto-Entgeltdifferenz",null,"Kurzarbeit  4 %",4,null,2,"Hessen",5.8000000000000003E-2,4.5999999999999999E-2]
["verbleibendes Brutto","Lohnsteuerklasse VI","Kinderfreibetrag - 2,5",null,null,"Zusätzlicher Krankenversicherungsbeitrag  0,3 %",0.3,"Aufzahlung gemäß § 2 TV KuB in der MuE BaWü",null,"Kurzarbeit  5 %",5,null,2.5,"Mecklenburg-Vorpommern (Nordverbund)",5.8000000000000003E-2,4.5999999999999999E-2]
[1750,null,"Kinderfreibetrag - 3",null,null,"Zusätzlicher Krankenversicherungsbeitrag  0,35 %",0.35,null,null,"Kurzarbeit  6 %",6,null,3,"Niedersachsen",5.8000000000000003E-2,4.5999999999999999E-2]
["entfallendes Brutto",null,"Kinderfreibetrag - 3,5",null,null,"Zusätzlicher Krankenversicherungsbeitrag  0,4 %",0.4,null,null,"Kurzarbeit  7 %",7,null,3.5,"Nordwestliches Niedersachsen (Nordverbund)",5.8000000000000003E-2,4.5999999999999999E-2]
[1750,null,"Kinderfreibetrag - 4",null,null,"Zusätzlicher Krankenversicherungsbeitrag  0,45 %",0.45,null,null,"Kurzarbeit  8 %",8,null,4,"Nordrhein-Westfalen",0.06,4.5999999999999999E-2]
["Pauschaliertes Netto IST",null,"Kinderfreibetrag - 4,5",null,null,"Zusätzlicher Krankenversicherungsbeitrag  0,5 %",0.5,null,null,"Kurzarbeit  9 %",9,null,4.5,"Osnabrück-Emsland",5.7500000000000002E-2,4.7899999999999998E-2]
[943.36,null,"Kinderfreibetrag - 5",null,null,"Zusätzlicher Krankenversicherungsbeitrag  0,55 %",0.55000000000000004,null,null,"Kurzarbeit  10 %",10,null,5,"Pfalz",5.8000000000000003E-2,4.5999999999999999E-2]
["Kurzarbeitergeld",null,"Kinderfreibetrag - 5,5",null,null,"Zusätzlicher Krankenversicherungsbeitrag  0,6 %",0.6,null,null,"Kurzarbeit  11 %",11,null,5.5,"Rheinland-Rheinhessen",5.8000000000000003E-2,4.5999999999999999E-2]
[746.50999999999988,null,"Kinderfreibetrag - 6",null,null,"Zusätzlicher Krankenversicherungsbeitrag  0,65 %",0.65,null,null,"Kurzarbeit  12 %",12,null,6,"Saarland",5.8000000000000003E-2,4.5999999999999999E-2]
[{"$nulls":5},"Zusätzlicher Krankenversicherungsbeitrag  0,7 %",0.7,null,null,"Kurzarbeit  13 %",13,null,6.5,"Sachsen",5.8000000000000003E-2,4.5999999999999999E-2]
["Netto bei Brutto über Bemessungsgrenze",{"$nulls":4},"Zusätzlicher Krankenversicherungsbeitrag  0,75 %",0.75,null,null,"Kurzarbeit  14 %",14,null,7,"Sachsen-Anhalt",5.7500000000000002E-2,4.1700000000000001E-2]
[4471.6900000000005,{"$nulls":4},"Zusätzlicher Krankenversicherungsbeitrag  0,8 %",0.8,null,null,"Kurzarbeit  15 %",15,null,7.5,"Schleswig-Holstein (Nordverbund)",5.8000000000000003E-2,4.5999999999999999E-2]
[{"$nulls":5},"Zusätzlicher Krankenversicherungsbeitrag  0,85 %",0.85,null,null,"Kurzarbeit  16 %",16,null,8,"Thüringen",5.8000000000000003E-2,4.2000000000000003E-2]
[null,"SOLL","IST","ZiA",null,"Zusätzlicher Krankenversicherungsbeitrag  0,9 %",0.9,null,null,"Kurzarbeit  17 %",17,null,8.5,"Unterweser (Nordverbund)",5.8000000000000003E-2,4.5999999999999999E-2]
["Lohnsteuer",264.16000000000003,0,264.16000000000003,null,"Zusätzlicher Krankenversicherungsbeitrag  0,95 %",0.95,null,null,"Kurzarbeit  18 %",18,null,9,"TG III",5.8000000000000003E-2,4.2000000000000003E-2]
["Solidaritätszuschlag",0,0,0,null,"Zusätzlicher Krankenversicherungsbeitrag  1 %",1,null,null,"Kurzarbeit  19 %",19,null,9.5]
["Kirchensteuer",0,0,0,null,"Zusätzlicher Krankenversicherungsbeitrag  1,05 %",1.05,null,null,"Kurzarbeit  20 %",20,null,10]
[{"$f":"IF(B12=0,\"9,3% Rentenversicherung\",\"Rentenversicherung\")","v":"9,3% Rentenversicherung"},325.5,162.75,325.5,null,"Zusätzlicher Krankenversicherungsbeitrag  1,1 %",1.1000000000000001,null,null,"Kurzarbeit  21 %",21,null,10.5]
["7,3% Krankenversicherungsbeitrag (incl. Zusatz)",271.25,135.63,271.25,null,"Zusätzlicher Krankenversicherungsbeitrag  1,15 %",1.1499999999999999,null,null,"Kurzarbeit  22 %",22,null,11]
[{"$f":"IF(B12=1,\"Pflegeversicherung\",IF(B10=0,1.275,1.775)+IF(B8=0,0,0.25) &\"% Pflegeversicherung\")","v":"1,525% Pflegeversicherung"},53.38,26.69,53.38,null,"Zusätzlicher Krankenversicherungsbeitrag  1,2 %",1.2,null,null,"Kurzarbeit  23 %",23,null,11.5]
["1,20% Arbeitslosenversicherung",42,21,42,null,"Zusätzlicher Krankenversicherungsbeitrag  1,25 %",1.25,null,null,"Kurzarbeit  24 %",24,null,12]
["gesetzliche Abzüge",956.29000000000008,346.07,956.29000000000008,null,"Zusätzlicher Krankenversicherungsbeitrag  1,3 %",1.3,null,null,"Kurzarbeit  25 %",25,null,12.5]
[{"$nulls":5},"Zusätzlicher Krankenversicherungsbeitrag  1,35 %",1.35,null,null,"Kurzarbeit  26 %",26,null,13]
["monatliches Netto SOLL",{"$nulls":4},"Zusätzlicher Krankenversicherungsbeitrag  1,4 %",1.4,null,null,"Kurzarbeit  27 %",27,null,13.5]
[2543.71,{"$nulls":4},"Zusätzlicher Krankenversicherungsbeitrag  1,45 %",1.45,null,null,"Kurzarbeit  28 %",28,null,14]
["Netto zu Brutto in %",{"$nulls":4},"Zusätzlicher Krankenversicherungsbeitrag  1,5 %",1.5,null,null,"Kurzarbeit  29 %",29,null,14.5]
[0.72677428571428571,{"$nulls":4},"Zusätzlicher Krankenversicherungsbeitrag  1,55 %",1.55,null,null,"Kurzarbeit  30 %",30,null,15]
[{"$nulls":5},"Zusätzlicher Krankenversicherungsbeitrag  1,6 %",1.6,null,null,"Kurzarbeit  31 %",31,null,15.5]
["verbleibendes Netto IST",{"$nulls":4},"Zusätzlicher Krankenversicherungsbeitrag  1,65 %",1.65,null,null,"Kurzarbeit  32 %",32,null,16]
[1198.1199999999999,{"$nulls":4},"Zusätzlicher Krankenversicherungsbeitrag  1,7 %",1.7,null,null,"Kurzarbeit  33 %",33,null,16.5]
[{"$nulls":5},"Zusätzlicher Krankenversicherungsbeitrag  1,75 %",1.75,null,null,"Kurzarbeit  34 %",34,null,17]
["Leistungszulage",0,0,null,null,"Zusätzlicher Krankenversicherungsbeitrag  1,8 %",1.8,null,null,"Kurzarbeit  35 %",35,null,17.5]
["Erschwerniszulage %",0,0,null,null,"Zusätzlicher Krankenversicherungsbeitrag  1,85 %",1.85,null,null,"Kurzarbeit  36 %",36,null,18]
["Erschwerniszulage €",0,0,null,null,"Zusätzlicher Krankenversicherungsbeitrag  1,9 %",1.9,null,null,"Kurzarbeit  37 %",37,null,18.5]
["Schicht- Wochenendzuschläge",0,0,null,null,"Zusätzlicher Krankenversicherungsbeitrag  1,95 %",1.95,null,null,"Kurzarbeit  38 %",38,null,19]
[{"$nulls":5},"Zusätzlicher Krankenversicherungsbeitrag  2 %",2,null,null,"Kurzarbeit  39 %",39,null,19.5]
["Lohnnebenkosten 25 %",875,437.5,null,null,"Zusätzlicher Krankenversicherungsbeitrag  2,05 %",2.0499999999999998,null,null,"Kurzarbeit  40 %",40,null,20]
["normales Brutto SOLL + Lohnnebenkosten",4375,null,null,null,"Zusätzlicher Krankenversicherungsbeitrag  2,1 %",2.1,null,null,"Kurzarbeit  41 %",41,null,20.5]
["verbleibendes Brutto SOLL + Lohnnebenkosten",2187.5,null,null,null,"Zusätzlicher Krankenversicherungsbeitrag  2,15 %",2.15,null,null,"Kurzarbeit  42 %",42,null,21]
["vom Fiktivlohn",1400,null,null,null,"Zusätzlicher Krankenversicherungsbeitrag  2,2 %",2.2000000000000002,null,null,"Kurzarbeit  43 %",43,null,21.5]
["Remanenz KV 14,6 %",204.39999999999998,null,null,null,"Zusätzlicher Krankenversicherungsbeitrag  2,25 %",2.25,null,null,"Kurzarbeit  44 %",44,null,22]
["Remanenz Pflege 3,05%",42.699999999999996,null,null,null,"Zusätzlicher Krankenversicherungsbeitrag  2,3 %",2.2999999999999998,null,null,"Kurzarbeit  45 %",45,null,22.5]
["Remanenz Rentenversicherung 18,6 %",260.39999999999998,null,null,null,"Zusätzlicher Krankenversicherungsbeitrag  2,35 %",2.35,null,null,"Kurzarbeit  46 %",46,null,23]
[{"$nulls":5},"Zusätzlicher Krankenversicherungsbeitrag  2,4 %",2.4,null,null,"Kurzarbeit  47 %",47,null,23.5]
["Bruttolohnkosten bei KA",2187.5,null,null,null,"Zusätzlicher Krankenversicherungsbeitrag  2,45 %",2.4500000000000002,null,null,"Kurzarbeit  48 %",48,null,24]
["Bruttolohnkosten bei KA in %",0.5,null,null,null,"Zusätzlicher Krankenversicherungsbeitrag  2,5 %",2.5,null,null,"Kurzarbeit  49 %",49,null,24.5]
["Kostenersparnis des AG in %",0.5,null,null,null,"Zusätzlicher Krankenversicherungsbeitrag  2,55 %",2.5499999999999998,null,null,"Kurzarbeit  50 %",50,null,25]
[{"$nulls":5},"Zusätzlicher Krankenversicherungsbeitrag  2,6 %",2.6,null,null,"Kurzarbeit  51 %",51,null,25.5]
["WAZ nachher",{"$nulls":4},"Zusätzlicher Krankenversicherungsbeitrag  2,65 %",2.65,null,null,"Kurzarbeit  52 %",52,null,26]
[{"$nulls":5},"Zusätzlicher Krankenversicherungsbeitrag  2,7 %",2.7,null,null,"Kurzarbeit  53 %",53,null,26.5]
["Inhalt Rechner 1",{"$nulls":8},"Kurzarbeit  54 %",54,null,27]
["BruttoEntgelt SOLL",0,{"$nulls":7},"Kurzarbeit  55 %",55,null,27.5]
["Leistungszulage %",0,{"$nulls":7},"Kurzarbeit  56 %",56,null,28]
["Leistungszulage €",0,{"$nulls":7},"Kurzarbeit  57 %",57,null,28.5]
["Erschwerniszulagen",0,{"$nulls":7},"Kurzarbeit  58 %",58,null,29]
["Schicht- und Wochenendzuschläge",0,{"$nulls":7},"Kurzarbeit  59 %",59,null,29.5]
["Summe",0,{"$nulls":7},"Kurzarbeit  60 %",60,null,30]
[{"$nulls":9},"Kurzarbeit  61 %",61,null,30.5]
["Brutto ZiA",3500,{"$nulls":7},"Kurzarbeit  62 %",62,null,31]
["Netto ZiA",1403.93,{"$nulls":7},"Kurzarbeit  63 %",63,null,31.5]
[{"$nulls":9},"Kurzarbeit  64 %",64,null,32]
["Ratierliche Rechnerinhalt",{"$nulls":8},{"$f":"J$3&K69&K$3","v":"Kurzarbeit  65 %"},65,null,32.5]
[null,null,0,{"$nulls":6},"Kurzarbeit  66 %",66,null,33]
[null,null,0,{"$nulls":6},"Kurzarbeit  67 %",67,null,33.5]
[null,null,0,{"$nulls":6},"Kurzarbeit  68 %",68,null,34]
[null,null,0,{"$nulls":6},"Kurzarbeit  69 %",69,null,34.5]
[null,null,0,{"$nulls":6},"Kurzarbeit  70 %",70,null,35]
[{"$nulls":9},"Kurzarbeit  71 %",71,null,35.5]
["Text für Mitteilung bei \"positivem\" Differenzbetrag","Text der Überschrift",{"$nulls":7},"Kurzarbeit  72 %",72,null,36]
["Die angegebenen Daten führen dazu, dass das Nettoeinkommen in Kurzarbeit größer ist, als das normale Netto-Monatsentgelt! ","ACHTUNG!",{"$nulls":7},"Kurzarbeit  73 %",73,null,36.5]
["Text für Mitteilung bei Überschreitung Bemessungsgrenze durch ratierliche","Text der Überschrift",{"$nulls":7},"Kurzarbeit  74 %",74,null,37]
["Mit dieser Umlage der Einmalzahlungen steigt das Brutto-Monatsentgelt über die Beitragsbemessungsgrenze \nder Sozialversicherung. Gemäß Tarifvertrag ZiA 2020 \n(TV BiK in NDS-LSA) ist in einem solchen Fall in der entsprechenden Betriebsvereinbarung vorzusehen, dass auch für den überschreitenden Teil des erhöhten Monatsentgelts, ein Netto-Entgelt entsprechend \nder jeweiligen Leistungshöhe des KuG (60 bzw. 67 % netto) \nzu gewähren ist.",{"$nulls":8},"Kurzarbeit  75 %",75,null,37.5]
["Text für Mitteilung bei genrereller Überschreitung Bemessungsgrenze","Text der Überschrift",{"$nulls":7},"Kurzarbeit  76 %",76,null,38]
["Das eingegebene Brutto-Monatsentgelt liegt über der Beitragsbemessungsgrenze der Sozialversicherung. Für die Berechnung des Kurzarbeitergeldes wird das Monatsentgelt \naber nur bis zur Höhe der Beitragsbemessung berücksichtigt.",{"$nulls":8},"Kurzarbeit  77 %",77,null,38.5]
[{"$nulls":9},"Kurzarbeit  78 %",78,null,39]
[{"$nulls":9},"Kurzarbeit  79 %",79,null,39.5]
[{"$nulls":9},"Kurzarbeit  80 %",80,null,40]
[{"$nulls":9},"Kurzarbeit  81 %",81,null,40.5]
[{"$nulls":9},"Kurzarbeit  82 %",82,null,41]
[{"$nulls":9},"Kurzarbeit  83 %",83,null,41.5]
[{"$nulls":9},"Kurzarbeit  84 %",84,null,42]
[{"$nulls":9},"Kurzarbeit  85 %",85,null,42.5]
[{"$nulls":9},"Kurzarbeit  86 %",86,null,43]
[{"$nulls":9},"Kurzarbeit  87 %",87,null,43.5]
[{"$nulls":9},"Kurzarbeit  88 %",88,null,44]
[{"$nulls":9},"Kurzarbeit  89 %",89,null,44.5]
[{"$nulls":9},"Kurzarbeit  90 %",90,null,45]
[{"$nulls":9},"Kurzarbeit  91 %",91,null,45.5]
[{"$nulls":9},"Kurzarbeit  92 %",92,null,46]
[{"$nulls":9},"Kurzarbeit  93 %",93,null,46.5]
[{"$nulls":9},"Kurzarbeit  94 %",94,null,47]
[{"$nulls":9},"Kurzarbeit  95 %",95,null,47.5]
[{"$nulls":9},"Kurzarbeit  96 %",96,null,48]
[{"$nulls":9},"Kurzarbeit  97 %",97,null,48.5]
[{"$nulls":9},"Kurzarbeit  98 %",98,null,49]
[{"$nulls":9},"Kurzarbeit  99 %",99,null,49.5]
[{"$nulls":9},"Kurzarbeit  100 %",100,null,50]
[{"$nulls":12},50.5]
[{"$nulls":12},51]
[{"$nulls":12},51.5]
[{"$nulls":12},52]
[{"$nulls":12},52.5]
[{"$nulls":12},53]
[{"$nulls":12},53.5]
[{"$nulls":12},54]
[{"$nulls":12},54.5]
[{"$nulls":12},55]
[{"$nulls":12},55.5]
[{"$nulls":12},56]
[{"$nulls":12},56.5]
[{"$nulls":12},57]
[{"$nulls":12},57.5]
[{"$nulls":12},58]
[{"$nulls":12},58.5]
[{"$nulls":12},59]
[{"$nulls":12},59.5]
[{"$nulls":12},60]
[{"$nulls":12},60.5]
[{"$nulls":12},61]
[{"$nulls":12},61.5]
[{"$nulls":12},62]
[{"$nulls":12},62.5]
[{"$nulls":12},63]
[{"$nulls":12},63.5]
[{"$nulls":12},64]
[{"$nulls":12},64.5]
[{"$nulls":12},65]
[{"$nulls":12},65.5]
[{"$nulls":12},66]
[{"$nulls":12},66.5]
[{"$nulls":12},67]
[{"$nulls":12},67.5]
[{"$nulls":12},68]
[{"$nulls":12},68.5]
[{"$nulls":12},69]
[{"$nulls":12},69.5]
[{"$nulls":12},70]
[{"$nulls":12},70.5]
[{"$nulls":12},71]
[{"$nulls":12},71.5]
[{"$nulls":12},72]
[{"$nulls":12},72.5]
[{"$nulls":12},73]
[{"$nulls":12},73.5]
[{"$nulls":12},74]
[{"$nulls":12},74.5]
[{"$nulls":12},75]
[{"$nulls":12},75.5]
[{"$nulls":12},76]
[{"$nulls":12},76.5]
[{"$nulls":12},77]
[{"$nulls":12},77.5]
[{"$nulls":12},78]
[{"$nulls":12},78.5]
[{"$nulls":12},79]
[{"$nulls":12},79.5]
[{"$nulls":12},80]
[{"$nulls":12},80.5]
[{"$nulls":12},81]
[{"$nulls":12},81.5]
[{"$nulls":12},82]
[{"$nulls":12},82.5]
[{"$nulls":12},83]
[{"$nulls":12},83.5]
[{"$nulls":12},84]
[{"$nulls":12},84.5]
[{"$nulls":12},85]
[{"$nulls":12},85.5]
[{"$nulls":12},86]
[{"$nulls":12},86.5]
[{"$nulls":12},87]
[{"$nulls":12},87.5]
[{"$nulls":12},88]
[{"$nulls":12},88.5]
[{"$nulls":12},89]
[{"$nulls":12},89.5]
[{"$nulls":12},90]
[{"$nulls":12},90.5]
[{"$nulls":12},91]
[{"$nulls":12},91.5]
[{"$nulls":12},92]
[{"$nulls":12},92.5]
[{"$nulls":12},93]
[{"$nulls":12},93.5]
[{"$nulls":12},94]
[{"$nulls":12},94.5]
[{"$nulls":12},95]
[{"$nulls":12},95.5]
[{"$nulls":12},96]
[{"$nulls":12},96.5]
[{"$nulls":12},97]
[{"$nulls":12},97.5]
[{"$nulls":12},98]
[{"$nulls":12},98.5]
[{"$nulls":12},99]
[{"$nulls":12},99.5]
[{"$nulls":12},100]